fUSD/lending_fUSD_20241222
["ID","MTS","AMOUNT","RATE_DAILY","PERIOD"]
[346315352,1734885043082,-2147.6,0.00019725,2]
[346315353,1734885043091,-500.0,0.00019725,2]
[346315354,1734885043100,-500.0,0.00019726,2]
[346315355,1734885043109,-500.0,0.00019726,2]
[346315356,1734885043119,-500.0,0.00019726,2]
[346315357,1734885043128,-500.0,0.00019726,2]
[346315358,1734885043139,-500.0,0.00019726,2]
[346315359,1734885043148,-500.0,0.00019726,2]
[346315360,1734885043158,-684.22,0.00019726,2]
[346315361,1734885043168,-500.0,0.00019726,2]
[346315362,1734885043177,-500.0,0.00019726,2]
[346315363,1734885043187,-2000.0,0.00019726,2]
[346315364,1734885043197,-500.0,0.00019726,2]
[346315365,1734885043206,-500.0,0.00019726,2]
[346315366,1734885043217,-500.0,0.00019726,2]
[346315367,1734885043226,-500.0,0.00019726,2]
[346315368,1734885043236,-385.82983461,0.00019726,2]
[346315370,1734885043245,-500.0,0.00019726,2]
[346315372,1734885043254,-500.0,0.00019726,2]
[346315374,1734885043264,-576.11,0.00019726,2]
[346315376,1734885043273,-500.0,0.00019726,2]
[346315378,1734885043282,-500.0,0.00019726,2]
[346315380,1734885043291,-500.0,0.00019726,2]
[346315382,1734885043300,-500.0,0.00019726,2]
[346315384,1734885043309,-500.0,0.00019726,2]
[346315386,1734885043318,-500.0,0.00019726,2]
[346315388,1734885043327,-500.0,0.00019726,2]
[346315390,1734885043336,-500.0,0.00019726,2]
[346315392,1734885043347,-500.0,0.00019726,2]
[346315394,1734885043356,-500.0,0.00019726,2]
[346315396,1734885043365,-500.0,0.00019726,2]
[346315398,1734885043376,-500.0,0.00019726,2]
[346315400,1734885043385,-500.0,0.00019726,2]
[346315402,1734885043394,-500.0,0.00019726,2]
[346315404,1734885043403,-500.0,0.00019726,2]
[346315406,1734885043412,-500.0,0.00019726,2]
[346315408,1734885043422,-500.0,0.00019726,2]
[346315410,1734885043431,-500.0,0.00019726,2]
[346315412,1734885043440,-500.0,0.00019726,2]
[346315414,1734885043449,-500.0,0.00019726,2]
[346315416,1734885043458,-500.0,0.00019726,2]
[346315418,1734885043467,-730.33,0.00019726,2]
[346315420,1734885043476,-747.68,0.00019726,2]
[346315422,1734885043485,-500.0,0.00019726,2]
[346315424,1734885043494,-500.0,0.00019726,2]
[346315426,1734885043503,-555.92,0.00019726,2]
[346315427,1734885043512,-500.0,0.00019726,2]
[346315428,1734885043521,-500.0,0.00019726,2]
[346315429,1734885043530,-500.0,0.00019726,2]
[346315430,1734885043540,-500.0,0.00019726,2]
[346315431,1734885043549,-588.54115342,0.00019726,2]
[346315432,1734885043559,-500.0,0.00019726,2]
[346315433,1734885043568,-1446.97,0.00019726,2]
[346315434,1734885043577,-1795.32,0.00019726,2]
[346315435,1734885043586,-500.0,0.00019726,2]
[346315436,1734885043596,-500.0,0.00019726,2]
[346315437,1734885043605,-654.65,0.00019726,2]
[346315438,1734885043615,-500.0,0.00019726,2]
[346315439,1734885043625,-1012.12,0.00019726,2]
[346315440,1734885043635,-500.0,0.00019726,2]
[346315441,1734885043646,-500.0,0.00019726,2]
[346315442,1734885043655,-5474.44,0.00019726,2]
[346315443,1734885043665,-500.0,0.00019726,2]
[346315444,1734885043674,-5183.5,0.00019726,2]
[346315445,1734885043683,-801.72,0.00019726,2]
[346315446,1734885043862,-500.0,0.00019726,2]
[346315447,1734885043872,-500.0,0.00019726,2]
[346315448,1734885043883,-3665.24,0.00019726,2]
[346315449,1734885043892,-3257.16,0.00019726,2]
[346315450,1734885043902,-500.0,0.00019726,2]
[346315451,1734885043911,-2347.82,0.00019726,2]
[346315452,1734885043921,-1601.89,0.00019726,2]
[346315453,1734885043931,-783.59,0.00019726,2]
[346315454,1734885043940,-3430.04,0.00019726,2]
[346315455,1734885043950,-2929.24,0.00019726,2]
[346315456,1734885043959,-500.0,0.00019726,2]
[346315457,1734885043968,-20816.1,0.00019726,2]
[346315458,1734885043977,-352.88286951,0.00019726,2]
[346315459,1734885043987,-1223.83,0.00019726,2]
[346315460,1734885043997,-4361.44,0.00019726,2]
[346315461,1734885044006,-220.12,0.00019726,2]
[346315462,1734885044015,-500.0,0.00019726,2]
[346315463,1734885044025,-500.0,0.00019726,2]
[346315464,1734885044034,-500.0,0.00019726,2]
[346315465,1734885044044,-805.11,0.00019726,2]
[346315466,1734885044054,-1993.44800909,0.0001979,2]
[346315467,1734885044063,-109751.92442705,0.000198,2]
[346315468,1734885044073,-500.0,0.0001984,2]
[346315469,1734885044082,-23513.99892552,0.00019875,2]
[346315470,1734885044093,-18179.42502836,0.00019879,2]
[346315471,1734885044103,-100043.8403191,0.00019895,2]
[346315472,1734885044113,-1879266.9214688,0.000199,2]
[346315473,1734885044123,-300.0,0.000199,7]
[346315474,1734885044132,-15455.78905919,0.000199,2]
[346315475,1734885044142,-212.00692945,0.000199,2]
[346315476,1734885044151,-212.0,0.000199,2]
[346315477,1734885044160,-986.82606465,0.000199,2]
[346315478,1734885044170,-713.85908049,0.000199,2]
[346315479,1734885044181,-158.19454952,0.000199,2]
[346315480,1734885044192,-159653.34699418,0.0001996,2]
[346315481,1734885044202,-400.0,0.0001997,2]
[346315482,1734885044213,-658.58246427,0.0001997,2]
[346315483,1734885044223,-359.02289266,0.00019973,2]
[346315484,1734885044234,-3474662.06300808,0.0001998,2]
[346315485,1734885044244,-21311.78300961,0.0001999,2]
[346315486,1734885044255,-15416.27835465,0.0001999,2]
[346315487,1734885044265,-842.93,0.00019998,2]
[346315488,1734885044276,-500.0,0.00019998,2]
[346315489,1734885044293,-1493.17,0.00019998,2]
[346315490,1734885044302,-500.0,0.00019998,2]
[346315491,1734885044312,-787.08,0.00019998,2]
[346315492,1734885044321,-2178.288919,0.00019998,2]
[346315493,1734885044330,-407.169735,0.00019998,2]
[346315494,1734885044340,-22792.41,0.00019998,2]
[346315495,1734885044350,-12469.42,0.00019998,2]
[346315496,1734885044360,-500.0,0.00019998,2]
[346315497,1734885044369,-11338.63,0.00019998,2]
[346315498,1734885044379,-1768.74,0.00019998,2]
[346315499,1734885044389,-500.0,0.00019998,2]
[346315500,1734885044399,-500.0,0.00019998,2]
[346315501,1734885044408,-1693.64,0.00019998,2]
[346315502,1734885044417,-500.0,0.00019998,2]
[346315503,1734885044427,-2292.82,0.00019998,2]
[346315504,1734885044437,-858.76,0.00019998,2]
[346315505,1734885044446,-500.0,0.00019998,2]
[346315506,1734885044455,-500.0,0.00019998,2]
[346315507,1734885044465,-3776.39,0.00019998,2]
[346315508,1734885044475,-500.0,0.00019998,2]
[346315509,1734885044485,-2331.38,0.00019998,2]
[346315510,1734885044494,-6301.22,0.00019998,2]
[346315511,1734885044504,-500.0,0.00019998,2]
[346315512,1734885044513,-682.24,0.00019998,2]
[346315513,1734885044523,-7108.41,0.00019998,2]
[346315514,1734885044533,-756.06,0.00019998,2]
[346315515,1734885044542,-2942.26,0.00019998,2]
[346315516,1734885044552,-2986.85,0.00019998,2]
[346315517,1734885044561,-232.131864,0.00019998,2]
[346315518,1734885044571,-2807.15,0.00019998,2]
[346315519,1734885044580,-1200.64277,0.00019998,2]
[346315520,1734885044589,-500.0,0.00019998,2]
[346315521,1734885044600,-978.1,0.00019998,2]
[346315522,1734885044610,-1265.74,0.00019998,2]
[346315523,1734885044619,-1168.6,0.00019998,2]
[346315524,1734885044629,-1465.73,0.00019998,2]
[346315525,1734885044641,-607.07,0.00019998,2]
[346315526,1734885044650,-500.0,0.00019998,2]
[346315527,1734885044660,-305.715125,0.00019998,2]
[346315528,1734885044669,-1786.755364,0.00019998,2]
[346315529,1734885044678,-789.7,0.00019998,2]
[346315530,1734885044688,-500.0,0.00019998,2]
[346315531,1734885044697,-4366.64,0.00019998,2]
[346315532,1734885044706,-500.0,0.00019999,2]
[346315533,1734885044716,-500.0,0.00019999,2]
[346315534,1734885044725,-500.0,0.00019999,2]
[346315535,1734885044736,-1000.0,0.00019999,2]
[346315536,1734885044745,-1000.0,0.00019999,3]
[346315537,1734885044755,-1000.0,0.00019999,4]
[346315538,1734885044764,-500.0,0.00019999,2]
[346315539,1734885044774,-500.0,0.00019999,2]
[346315540,1734885044783,-500.0,0.00019999,2]
[346315541,1734885044793,-500.0,0.00019999,2]
[346315542,1734885044802,-500.0,0.00019999,2]
[346315543,1734885044812,-500.0,0.00019999,2]
[346315544,1734885044822,-500.0,0.00019999,2]
[346315545,1734885044833,-500.0,0.00019999,2]
[346315546,1734885044847,-500.0,0.00019999,2]
[346315547,1734885044856,-500.0,0.00019999,2]
[346315548,1734885044866,-500.0,0.00019999,2]
[346315549,1734885044876,-500.0,0.00019999,2]
[346315550,1734885044885,-500.0,0.00019999,2]
[346315551,1734885044895,-1696.46,0.00019999,2]
[346315552,1734885044905,-500.0,0.00019999,2]
[346315553,1734885044915,-17657.13,0.00019999,2]
[346315554,1734885044925,-758.71,0.00019999,2]
[346315555,1734885044935,-500.0,0.00019999,2]
[346315556,1734885044945,-500.0,0.00019999,2]
[346315557,1734885044955,-94880.87474971,0.00019999,2]
[346315558,1734885044965,-500.0,0.00019999,2]
[346315559,1734885044974,-7549.89,0.00019999,2]
[346315560,1734885044984,-502.52,0.00019999,2]
[346315561,1734885044994,-527.4,0.00019999,2]
[346315562,1734885045003,-500.0,0.00019999,2]
[346315563,1734885045014,-4826.9,0.00019999,2]
[346315564,1734885045024,-536.93,0.00019999,2]
[346315565,1734885045033,-701.66,0.00019999,2]
[346315566,1734885045043,-500.0,0.00019999,2]
[346315567,1734885045053,-894.16,0.00019999,2]
[346315568,1734885045063,-2147.6,0.00019999,2]
[346315569,1734885045072,-500.0,0.00019999,2]
[346315570,1734885045082,-158.372,0.0002,2]
[346315571,1734885045091,-209.0,0.0002,2]
[346315572,1734885045103,-209.0,0.0002,2]
[346315573,1734885045113,-209.0,0.0002,2]
[346315574,1734885045123,-209.0,0.0002,2]
[346315575,1734885045132,-209.0,0.0002,2]
[346315576,1734885045142,-209.0,0.0002,2]
[346315577,1734885045152,-204.0,0.0002,2]
[346315578,1734885045161,-204.0,0.0002,2]
[346315579,1734885045171,-209.0,0.0002,2]
[346315580,1734885045180,-2569.15,0.0002,2]
[346315581,1734885045189,-150.0,0.0002,2]
[346315582,1734885045199,-202.6,0.0002,2]
[346315583,1734885045209,-2000.0,0.0002,2]
[346315584,1734885045218,-500.0,0.0002,2]
[346315585,1734885045227,-945.0,0.0002,7]
[346315586,1734885045238,-5000.0,0.0002,2]
[346315587,1734885045248,-7456.495112,0.0002,7]
[346315588,1734885045258,-2792.122462,0.0002,7]
[346315589,1734885045268,-1419.47118,0.0002,7]
[346315590,1734885045278,-500.0,0.0002,2]
[346315591,1734885045289,-500.0,0.0002,2]
[346315592,1734885045298,-500.0,0.0002,2]
[346315593,1734885045308,-500.0,0.0002,2]
[346315594,1734885045318,-500.0,0.0002,2]
[346315595,1734885045327,-500.0,0.0002,2]
[346315596,1734885045337,-684.22,0.0002,2]
[346315597,1734885045347,-500.0,0.0002,2]
[346315598,1734885045357,-500.0,0.0002,2]
[346315599,1734885045367,-500.0,0.0002,2]
[346315600,1734885045377,-500.0,0.0002,2]
[346315601,1734885045386,-500.0,0.0002,2]
[346315602,1734885045397,-500.0,0.0002,2]
[346315603,1734885045406,-500.0,0.0002,2]
[346315604,1734885045416,-500.0,0.0002,2]
[346315605,1734885045426,-576.11,0.0002,2]
[346315606,1734885045436,-500.0,0.0002,2]
[346315607,1734885045448,-500.0,0.0002,2]
[346315608,1734885045458,-500.0,0.0002,2]
[346315609,1734885045468,-639.20273445,0.0002,2]
[346315610,1734885045478,-500.0,0.0002,2]
[346315611,1734885045487,-500.0,0.0002,2]
[346315612,1734885045497,-10021.03330535,0.0002,7]
[346315613,1734885045507,-499.82139909,0.0002,2]
[346315614,1734885045516,-500.0,0.0002,2]
[346315616,1734885045526,-426.79160328,0.0002,2]
[346315618,1734885045536,-500.0,0.0002,2]
[346315620,1734885045545,-6500.0,0.0002,2]
[346315622,1734885045555,-392.91,0.0002,2]
[346315623,1734885045564,-297.45562122,0.0002,2]
[346315625,1734885045574,-500.0,0.0002,2]
[346315626,1734885045583,-27180.1709375,0.0002,60]
[346315627,1734885045594,-500.0,0.0002,2]
[346315628,1734885045603,-500.0,0.0002,2]
[346315629,1734885045612,-500.0,0.0002,2]
[346315630,1734885045622,-500.0,0.0002,2]
[346315631,1734885045632,-500.0,0.0002,2]
[346315632,1734885045642,-500.0,0.0002,2]
[346315633,1734885045651,-500.0,0.0002,2]
[346315634,1734885045661,-500.0,0.0002,2]
[346315635,1734885045671,-500.0,0.0002,2]
[346315636,1734885045680,-500.0,0.0002,2]
[346315637,1734885045690,-500.0,0.0002,2]
[346315638,1734885045701,-500.0,0.0002,2]
[346315639,1734885045710,-500.0,0.0002,2]
[346315640,1734885045720,-500.0,0.0002,2]
[346315641,1734885045730,-500.0,0.0002,2]
[346315642,1734885045739,-500.0,0.0002,2]
[346315643,1734885045750,-500.0,0.0002,2]
[346315644,1734885045759,-500.0,0.0002,2]
[346315645,1734885045769,-500.0,0.0002,2]
[346315646,1734885045778,-730.33,0.0002,2]
[346315647,1734885045789,-65344.39489571,0.0002,2]
[346315648,1734885045798,-1389.03899863,0.0002,5]
[346315649,1734885045808,-747.68,0.0002,2]
[346315650,1734885045818,-31101.9081994,0.0002,2]
[346315651,1734885045828,-7500.0,0.0002,2]
[346315652,1734885045841,-3822.01839656,0.0002,2]
[346315653,1734885045851,-102976.38601718,0.0002,2]
[346315654,1734885045861,-500.0,0.0002,2]
[346315655,1734885045871,-4166.58696057,0.0002,2]
[346315656,1734885045882,-79487.31583014,0.0002,4]
[346315657,1734885045892,-3950.0,0.0002,2]
[346315658,1734885045902,-56963.13170792,0.0002,2]
[346315659,1734885045912,-500.0,0.0002,2]
[346315660,1734885045922,-1236.41145142,0.0002,2]
[346315661,1734885045931,-18380268.92534412,0.0002,2]
[346315713,1734885046641,-1226.09,0.00018541,2]
[346315715,1734885046651,-500.0,0.00019178,2]
[346315717,1734885046662,-1517.89,0.00019452,2]
[346315719,1734885046673,-500.0,0.00019452,2]
[346315721,1734885046684,-1517.89,0.00019726,2]
[346315723,1734885046695,-500.0,0.00019726,2]
[346315726,1734885046705,-53625.85691546,0.0002,2]
[346315728,1734885046722,-81372.16480361,0.0002,2]
[346315731,1734885046738,-68575.10608431,0.0002,2]
[346315733,1734885046749,-1803.82920904,0.0002,2]
[346315736,1734885046771,-976.53583,0.0002,2]
[346315739,1734885046789,-666.72,0.0002,2]
[346315779,1734885047182,-189.53384069,0.000129,2]
[346315781,1734885047193,-116.7169765,0.0001945,2]
[346315784,1734885047214,-383.2830235,0.0001945,2]
[346315787,1734885047225,-500.0,0.00019724,2]
[346315789,1734885047236,-500.0,0.00019998,2]
[346315791,1734885047247,-3451.225948,0.0002,2]
[346315793,1734885047259,-1697.85,0.0002,2]
[346315832,1734885047644,-1312.499999,0.0002,2]
[346315834,1734885047659,-4012.43031184,0.0002,2]
[346315837,1734885047676,-24597.23421181,0.0002,2]
[346315840,1734885047695,-635.64187023,0.0002,2]
[346315868,1734885047975,-17665.05768256,0.0002,2]
[346315870,1734885047992,-1235.96199932,0.0002,2]
[346315895,1734885437903,171.44,0.00010137,2]
[346315896,1734885528160,4243.84966739,0.0002,120]
[346315897,1734885959008,161.84,0.00017726,30]
[346315900,1734886163397,10063.23,0.0002,120]
[346315907,1734886232147,-450.0,0.00013,2]
[346315908,1734886232156,-174.8,0.00013699,2]
[346315909,1734886232165,-500.0,0.00015,2]
[346315910,1734886232175,-1057.39,0.00015589,2]
[346315911,1734886232184,-151.61663114,0.00016281,2]
[346315912,1734886232193,-7672.22,0.00016381,2]
[346315913,1734886232202,-163.52,0.00016387,2]
[346315914,1734886232214,-200.0,0.00016403,2]
[346315915,1734886232223,-150.0,0.00016411,2]
[346315916,1734886232232,-1000.0,0.00016433,2]
[346315917,1734886232241,-1407.34,0.00016435,2]
[346315918,1734886232251,-966.32,0.00016436,2]
[346315919,1734886232260,-250.0,0.00016465,2]
[346315920,1734886232270,-8621.19336886,0.00016476,2]
[346315925,1734886232564,-1598.54784942,0.00016476,2]
[346315927,1734886237934,-1335.575,0.00016476,2]
[346315928,1734886237992,-557.91029838,0.00016476,2]
[346315929,1734886238003,-400.97885,0.00016476,2]
[346315930,1734886238052,-11385.79463334,0.00016476,2]
[346315931,1734886238061,-151.0,0.00016904,2]
[346315932,1734886238071,-165.79,0.00016906,2]
[346315933,1734886238083,-500.0,0.00016959,2]
[346315934,1734886238093,-550.0,0.00017,2]
[346315935,1734886238103,-250.0,0.00017506,2]
[346315936,1734886238113,-4339.09,0.0001753,2]
[346315937,1734886238124,-250.0,0.00017797,2]
[346315938,1734886238134,-1057.39,0.00017853,2]
[346315939,1734886238143,-3193.78,0.00017864,2]
[346315940,1734886238152,-631.13,0.00017896,2]
[346315941,1734886238161,-150.0,0.00018,2]
[346315942,1734886238171,-150.0,0.00018,2]
[346315943,1734886238180,-150.0,0.00018,2]
[346315944,1734886238189,-1000.0,0.00018487,2]
[346315945,1734886238199,-1407.34,0.00018489,2]
[346315946,1734886238212,-575.37,0.00018941,2]
[346315947,1734886238222,-575.37,0.00018946,2]
[346315948,1734886238232,-575.37,0.00018951,2]
[346315949,1734886238242,-575.37,0.00018956,2]
[346315950,1734886238252,-575.37,0.00018961,2]
[346315951,1734886238262,-575.37,0.00018966,2]
[346315952,1734886238272,-575.37,0.00018971,2]
[346315953,1734886238283,-575.37,0.00018976,2]
[346315954,1734886238293,-1000.0,0.00018978,2]
[346315955,1734886238303,-575.37,0.00018981,2]
[346315956,1734886238312,-575.37,0.00018986,2]
[346315957,1734886238321,-575.37,0.00018991,2]
[346315958,1734886238330,-575.37,0.00018996,2]
[346315959,1734886238341,-600.0,0.00019,2]
[346315960,1734886238350,-575.37,0.00019001,2]
[346315961,1734886238360,-575.37,0.00019006,2]
[346315962,1734886238370,-575.37,0.00019011,2]
[346315963,1734886238380,-300.0,0.00019014,2]
[346315965,1734886238389,-575.37,0.00019016,2]
[346315966,1734886238399,-575.37,0.00019021,2]
[346315967,1734886238408,-575.37,0.00019026,2]
[346315968,1734886238418,-575.37,0.00019031,2]
[346315969,1734886238427,-575.37,0.00019036,2]
[346315970,1734886238437,-162.12990575,0.00019069,2]
[346315973,1734886238446,-17395.28871733,0.00019078,2]
[346315976,1734886238456,-51387.4983,0.00019078,2]
[346315978,1734886238465,-2500.0,0.00019078,2]
[346315980,1734886238475,-165.59,0.00019168,2]
[346315981,1734886238485,-17395.28871725,0.00019169,2]
[346315982,1734886238495,-184.00908602,0.00019177,2]
[346315983,1734886238504,-500.0,0.00019178,2]
[346315984,1734886238514,-618.18,0.00019178,2]
[346315985,1734886238526,-557.91,0.00019178,2]
[346315986,1734886238535,-500.0,0.00019178,2]
[346315987,1734886238546,-500.0,0.00019178,2]
[346315988,1734886238556,-500.0,0.00019178,2]
[346315989,1734886238566,-500.0,0.00019178,2]
[346315990,1734886238575,-500.0,0.00019178,2]
[346315991,1734886238585,-500.0,0.00019178,2]
[346315992,1734886238594,-500.0,0.00019178,2]
[346315993,1734886238603,-501.79101749,0.00019178,2]
[346315994,1734886238613,-500.0,0.00019178,2]
[346315995,1734886238622,-500.0,0.00019178,2]
[346315996,1734886238632,-500.0,0.00019178,2]
[346315997,1734886238642,-500.0,0.00019178,2]
[346315998,1734886238652,-500.0,0.00019178,2]
[346315999,1734886238661,-500.0,0.00019178,2]
[346316000,1734886238670,-500.0,0.00019178,2]
[346316001,1734886238680,-500.0,0.00019178,2]
[346316002,1734886238689,-523.35628293,0.00019178,2]
[346316003,1734886238698,-500.0,0.00019178,2]
[346316004,1734886238708,-621.91,0.00019178,2]
[346316005,1734886238717,-500.0,0.00019178,2]
[346316006,1734886238726,-500.0,0.00019178,2]
[346316007,1734886238736,-500.0,0.00019178,2]
[346316008,1734886238745,-500.0,0.00019178,2]
[346316009,1734886238755,-500.0,0.00019178,2]
[346316010,1734886238764,-514.88002572,0.00019178,2]
[346316011,1734886238773,-500.0,0.00019178,2]
[346316012,1734886238783,-500.0,0.00019178,2]
[346316013,1734886238792,-500.0,0.00019178,2]
[346316014,1734886238802,-500.0,0.00019178,2]
[346316015,1734886238812,-500.0,0.00019178,2]
[346316016,1734886238821,-576.21,0.00019178,2]
[346316017,1734886238831,-500.0,0.00019178,2]
[346316018,1734886238840,-500.0,0.00019178,2]
[346316019,1734886238849,-500.0,0.00019178,2]
[346316020,1734886238859,-500.0,0.00019178,2]
[346316021,1734886238868,-500.0,0.00019178,2]
[346316022,1734886238877,-500.0,0.00019178,2]
[346316023,1734886238886,-500.0,0.00019178,2]
[346316024,1734886238895,-500.0,0.00019178,2]
[346316025,1734886238905,-500.0,0.00019178,2]
[346316026,1734886238914,-539.63,0.00019178,2]
[346316027,1734886238924,-500.0,0.00019178,2]
[346316028,1734886238934,-500.0,0.00019178,2]
[346316029,1734886238943,-500.0,0.00019178,2]
[346316030,1734886238952,-500.0,0.00019178,2]
[346316031,1734886238961,-284.5114849,0.00019178,2]
[346316032,1734886238976,-500.0,0.00019178,2]
[346316033,1734886238985,-500.0,0.00019178,2]
[346316034,1734886238995,-500.0,0.00019178,2]
[346316035,1734886239004,-500.0,0.00019178,2]
[346316036,1734886239014,-304.96518651,0.00019178,2]
[346316037,1734886239023,-500.0,0.00019178,2]
[346316038,1734886239032,-500.0,0.00019178,2]
[346316039,1734886239042,-500.0,0.00019178,2]
[346316040,1734886239055,-500.0,0.00019178,2]
[346316041,1734886239065,-500.0,0.00019178,2]
[346316042,1734886239074,-500.0,0.00019178,2]
[346316043,1734886239083,-500.0,0.00019178,2]
[346316044,1734886239093,-502.32802482,0.00019178,2]
[346316045,1734886239102,-500.0,0.00019178,2]
[346316046,1734886239112,-500.0,0.00019178,2]
[346316047,1734886239121,-500.0,0.00019178,2]
[346316048,1734886239130,-500.0,0.00019178,2]
[346316049,1734886239139,-500.0,0.00019178,2]
[346316050,1734886239148,-500.0,0.00019178,2]
[346316051,1734886239158,-500.0,0.00019178,2]
[346316052,1734886239167,-500.0,0.00019178,2]
[346316053,1734886239177,-500.0,0.00019178,2]
[346316054,1734886239187,-500.0,0.00019178,2]
[346316055,1734886239196,-309.66466196,0.00019178,2]
[346316056,1734886239207,-500.0,0.00019178,2]
[346316057,1734886239217,-500.0,0.00019178,2]
[346316058,1734886239227,-500.0,0.00019178,2]
[346316059,1734886239237,-500.0,0.00019178,2]
[346316060,1734886239247,-500.0,0.00019178,2]
[346316061,1734886239256,-500.0,0.00019178,2]
[346316062,1734886239265,-500.0,0.00019178,2]
[346316063,1734886239276,-500.0,0.00019178,2]
[346316064,1734886239286,-500.0,0.00019178,2]
[346316065,1734886239295,-500.0,0.00019178,2]
[346316066,1734886239304,-500.0,0.00019178,2]
[346316067,1734886239313,-500.0,0.00019178,2]
[346316068,1734886239322,-500.0,0.00019178,2]
[346316069,1734886239332,-500.0,0.00019178,2]
[346316070,1734886239341,-500.0,0.00019178,2]
[346316071,1734886239350,-501.0711743,0.00019178,2]
[346316072,1734886239360,-500.0,0.00019178,2]
[346316073,1734886239369,-500.0,0.00019178,2]
[346316074,1734886239379,-500.0,0.00019178,2]
[346316075,1734886239388,-500.0,0.00019178,2]
[346316076,1734886239398,-519.10247,0.00019178,2]
[346316077,1734886239411,-500.0,0.00019178,2]
[346316078,1734886239420,-500.0,0.00019178,2]
[346316079,1734886239429,-500.0,0.00019178,2]
[346316080,1734886239439,-541.47,0.00019178,2]
[346316081,1734886239448,-500.0,0.00019178,2]
[346316082,1734886239458,-611.13,0.00019178,2]
[346316083,1734886239468,-500.0,0.00019178,2]
[346316084,1734886239477,-500.0,0.00019178,2]
[346316085,1734886239487,-501.32538785,0.00019178,2]
[346316086,1734886239498,-500.0,0.00019178,2]
[346316087,1734886239507,-500.0,0.00019178,2]
[346316088,1734886239517,-512.23423639,0.00019178,2]
[346316089,1734886239527,-600.39,0.00019178,2]
[346316090,1734886239537,-500.0,0.00019178,2]
[346316091,1734886239546,-500.0,0.00019178,2]
[346316092,1734886239555,-500.0,0.00019178,2]
[346316093,1734886239565,-500.0,0.00019178,2]
[346316094,1734886239574,-500.0,0.00019178,2]
[346316095,1734886239584,-500.0,0.00019178,2]
[346316096,1734886239594,-500.0,0.00019178,2]
[346316097,1734886239603,-500.0,0.00019178,2]
[346316098,1734886239613,-500.0,0.00019178,2]
[346316099,1734886239622,-500.0,0.00019178,2]
[346316100,1734886239632,-502.41364511,0.00019178,2]
[346316101,1734886239641,-500.0,0.00019178,2]
[346316102,1734886239650,-500.0,0.00019178,2]
[346316103,1734886239659,-500.0,0.00019178,2]
[346316104,1734886239668,-500.0,0.00019178,2]
[346316105,1734886239679,-500.0,0.00019178,2]
[346316106,1734886239688,-500.0,0.00019178,2]
[346316107,1734886239697,-500.0,0.00019178,2]
[346316108,1734886239707,-500.0,0.00019178,2]
[346316109,1734886239718,-500.0,0.00019178,2]
[346316110,1734886239727,-502.77671586,0.00019178,2]
[346316111,1734886239737,-500.0,0.00019178,2]
[346316112,1734886239747,-546.99487135,0.00019178,2]
[346316113,1734886239756,-500.0,0.00019178,2]